[Event "Prague Open 2024"]
[Site "Prague"]
[Date "2024.01.11"]
[Round "8.18"]
[White "Arndt, Stefan"]
[Black "Filindash, Nikita"]
[Result "1-0"]
[ECO "D02"]
[WhiteElo "2130"]
[BlackElo "1916"]
[Annotator "TA"]
[PlyCount "67"]
[EventDate "2024.01.02"]
[EventType "swiss"]
[EventCountry "CZE"]
[SourceTitle "playchess.com"]
[Source "ChessBase"]
[SourceQuality "1"]
[TimeControl "40/5400+30:1800+30"]

{[%evp 18,67,16,13,2,6,10,19,23,16,0,5,14,-10,-4,-50,129,126,135,131,129,121,118,114,143,127,251,251,248,248,240,248,282,251,280,289,289,289,289,289,374,337,1466,1392,1381,1533,1305,1406,1527,1455,1205,1126]} 1. d4 {[%emt 0:00:03]} d5 {[%emt 0:00:03]} 2. Nf3 {[%emt 0:00:05]} e6 {[%emt 0:00:04]} 3. c4 {[%emt 0:00:07]} c6 {[%emt 0:00:07]} 4. e3 {[%emt 0:00:06]} Nf6 {[%emt 0:00:03]} 5. b3 {[%emt 0:00:10]} Nbd7 {[%emt 0:00:11]} 6. Bd3 {[%emt 0:00:10]} Bd6 {[%emt 0:00:04]} 7. Bb2 {[%emt 0:00:06]} O-O {[%emt 0:00:14]} 8. O-O {[%emt 0:00:16]} b6 {[%emt 0:00:01]} 9. Nc3 {[%emt 0:04:42]} Bb7 {[%emt 0:00:31]} 10. Rc1 {[%emt 0:00:18]} Rc8 {[%emt 0:09:50]} 11. Qe2 {[%emt 0:07:06]} Qe7 {[%emt 0:00:08]} 12. e4 {[%emt 0:07:04]} dxe4 {[%emt 0:00:05] The position is equal.} 13. Nxe4 {[%emt 0:00:04]} Nxe4 {[%emt 0:00:09]} 14. Qxe4 {[%emt 0:00:05][%csl Gd3][%cal Re4h7] [#]} f5 {[%emt 0:00:05]} 15. Qe2 {[%emt 0:00:23][%cal Oc4c5]} c5 {[%emt 0:00:44]} 16. Rfe1 {[%emt 0:02:41]} (16. dxc5 $11 Bxc5 17. Kh1) 16... Rfe8 $2 {[%emt 0:00:40] [#]} (16... Bxf3 $15 {stays ahead.} 17. Qxf3 cxd4) 17. d5 $1 $16 {[%emt 0:01:10][%mdl 512] Black is on the road to losing.} Nf6 {[%emt 0:26:41]} (17... exd5 18. Qc2) 18. Qxe6+ {[%emt 0:14:40]} ({Don't play} 18. dxe6 $6 Ne4 $11) 18... Qxe6 {[%emt 0:00:05]} 19. Rxe6 {[%emt 0:00:39]} Rxe6 {[%emt 0:00:03]} 20. dxe6 {[%emt 0:00:06]} Be4 {[%emt 0:00:04]} 21. Rd1 {[%emt 0:12:50] Black must now prevent Nh4.} Re8 {[%emt 0:01:25]} (21... Bxf3 $16 {was called for.} 22. gxf3 Be7 23. Bxf5 g6) 22. Bxf6 $18 {[%emt 0:00:16] Bxe4 would now be deadly.} Bxf3 {[%emt 0:00:52]} 23. gxf3 {[%emt 0:00:12][%cal Bg2f3,Bf3f4][%mdl 32]} gxf6 {[%emt 0:00:05]} 24. Bxf5 {[%emt 0:00:08][%mdl 4096] Endgame. KRB-KRB} Rd8 {[%emt 0:00:09][%cal Od6h2] And now ...Bxh2+! would win.} 25. Kg2 {[%emt 0:02:55]} Be7 {[%emt 0:01:23]} 26. Rd7 {[%emt 0:00:19]} Rxd7 {[%emt 0:00:20]} 27. exd7 {[%emt 0:00:04] f4 is the strong threat. KB-KB} Bd8 {[%emt 0:00:44]} 28. f4 {[%emt 0:01:14]} Bc7 {[%emt 0:00:26]} 29. Kf3 {[%emt 0:00:05] Strongly threatening Ke4.} h6 $2 {[%emt 0:00:43]} (29... Kf7 30. Ke4 (30. Bxh7 Ke6 $18) 30... Ke7) 30. Ke4 {[%emt 0:04:42] White is clearly winning.} Kf7 {[%emt 0:00:14]} 31. Kd5 {[%emt 0:00:25]} Ke7 {[%emt 0:01:39]} 32. h3 {[%emt 0:00:46]} Bxf4 {[%emt 0:05:02]} 33. Kc6 {[%emt 0:00:09]} Kd8 {[%emt 0:00:17]} 34. Kb7 {[%emt 0:00:08] Weighted Error Value: White=0.07 (flawless) /Black=0.38.  Mistake:       	White=1     	Black=3      OK:         	White=7     	Black=6      Best:        	White=2     	Black=2      Brilliant:      	White=1     	---} 1-0

[Event "Prague Open 2024"]
[Site "Prague"]
[Date "2024.01.11"]
[Round "8.19"]
[White "Golis, Wiktor"]
[Black "Tolmacevs, Artjoms"]
[Result "1-0"]
[ECO "B23"]
[WhiteElo "2123"]
[BlackElo "1928"]
[Annotator "TA"]
[PlyCount "73"]
[EventDate "2024.01.02"]
[EventType "swiss"]
[EventCountry "CZE"]
[SourceTitle "playchess.com"]
[Source "ChessBase"]
[SourceQuality "1"]
[TimeControl "40/5400+30:1800+30"]

{[%evp 9,73,0,21,0,0,0,0,-8,10,-16,21,6,19,25,58,52,81,73,98,113,313,300,308,293,480,483,453,461,519,449,444,444,425,393,541,552,527,311,308,205,230,255,241,254,514,518,509,508,657,652,626,641,658,643,1283,1219,1097,1093,29992,29993,29993,29994,29994,29995,29995,29996]} 1. e4 {[%emt 0:00:06]} c5 {[%emt 0:00:05]} 2. Nc3 {[%emt 0:00:14]} d6 {[%emt 0:00:09]} 3. d4 {[%emt 0:00:11]} cxd4 {[%emt 0:01:46]} 4. Qxd4 {[%emt 0:00:06]} Nc6 {[%emt 0:00:02]} 5. Qd2 {[%emt 0:00:11]} g6 {[%emt 0:05:25]} 6. b3 {[%emt 0:00:23]} Bh6 {[%emt 0:00:15]} 7. f4 {[%emt 0:00:07]} Nf6 {[%emt 0:00:02]} 8. Bb2 {[%emt 0:00:08] The position is equal.} O-O {[%emt 0:00:03]} 9. O-O-O {[%emt 0:00:08]} e5 {[%emt 0:00:10]} 10. g3 {[%emt 0:00:08][%cal Of1g2]} Re8 {[%emt 0:07:01]} 11. Kb1 {[%emt 0:00:40][%cal Of1g2]} Bg4 {[%emt 0:05:08]} 12. Be2 {[%emt 0:10:36][%cal Oe2g4]} Bxe2 {[%emt 0:08:11]} 13. Ngxe2 {[%emt 0:00:26][%cal Od2d3,Bg1e2,Be2g3,Bg3f5][%mdl 32]} exf4 {[%emt 0:12:03]} 14. gxf4 {[%emt 0:03:58]} Nh5 $2 {[%emt 0:08:08] Prevents Ng3. This move loses the game for Black.} (14... Nxe4 $16 {is a better defense.} 15. Nxe4 Rxe4) 15. Nd5 $18 {[%emt 0:07:17]} (15. Qxd6 Qxd6 16. Rxd6 Nxf4 $11) 15... Bg7 {[%emt 0:11:44]} 16. Bxg7 {[%emt 0:01:36]} Kxg7 {[%emt 0:00:32]} (16... Nxg7 17. Ng3 a5) 17. Ng3 {[%emt 0:04:06]} Nf6 {[%emt 0:02:30]} 18. Qc3 {[%emt 0:00:35]} Re6 {[%emt 0:01:20] [#]} 19. Nf5+ $1 {[%emt 0:04:01][%mdl 512]} Kf8 {[%emt 0:06:17]} (19... gxf5 20. exf5) 20. Nh6 {[%emt 0:03:41][%cal Oh6g4] Threatens to win with Ng4!} Rc8 {[%emt 0:06:06]} 21. Qb2 {[%emt 0:00:50]} (21. f5 Ne5 22. Qb4 Nxd5 23. Rxd5 gxf5 $11) 21... Nb8 {[%emt 0:02:40]} 22. f5 {[%emt 0:01:14]} Nxd5 {[%emt 0:03:26]} 23. exd5 {[%emt 0:03:50]} ({Not} 23. Qh8+ Ke7 24. Qxh7 (24. Qxd8+ Rxd8 25. fxe6 Nc3+ 26. Kc1 Kxe6 $11) 24... Nc3+ 25. Kc1 Ne2+ 26. Kb2 Qh8+ 27. Qxh8 Rxh8 $16) 23... Re5 {[%emt 0:03:01]} 24. Rhe1 {[%emt 0:11:51]} f6 {[%emt 0:03:36]} 25. fxg6 {[%emt 0:01:40]} hxg6 {[%emt 0:00:12]} 26. Ng4 {[%emt 0:00:39]} Rxe1 $2 {[%emt 0:01:37]} (26... Nd7 27. Nxe5 Nxe5) 27. Rxe1 {[%emt 0:00:04][%cal Bd1e1,Be1e6,Be6d6,Bd6d7][%mdl 32]} Nd7 {[%emt 0:01:43]} 28. Re6 {[%emt 0:06:51]} Qb6 {[%emt 0:05:30]} 29. Qc1 {[%emt 0:04:50] [#] Dodges Qg1. Qh6+ would kill now.} Kf7 {[%emt 0:00:59]} 30. Qe1 {[%emt 0:01:45]} Qd8 {[%emt 0:03:49] Against Re7+} 31. Rxd6 {[%emt 0:01:51] Threatening mate with Qe6+.} Qc7 {[%emt 0:00:33]} 32. Qe6+ {[%emt 0:00:11]} Kf8 {[%emt 0:00:11]} 33. c4 {[%emt 0:00:27]} (33. Rxd7 $2 {leads to mate.} Qxc2+ 34. Ka1 Qc1#) 33... Qc5 {[%emt 0:01:08]} 34. Rxd7 {[%emt 0:03:29][%csl Gd7][%cal Re6f7] White mates.} Qg1+ {[%emt 0:00:02]} 35. Kc2 {[%emt 0:00:27][%csl Gd7][%cal Re6f7,Bb1c2,Bc2c3,Bc3b4][%mdl 32]} Qg2+ {[%emt 0:00:44]} 36. Kc3 {[%emt 0:00:08][%csl Gd7][%cal Re6f7]} Qf3+ {[%emt 0:00:21]} 37. Kb4 {[%emt 0:00:52] Weighted Error Value: White=0.24 (precise) /Black=0.54.  Loses game:     	---       	Black=1      Mistake:       	---       	Black=2      Inaccurate:     	White=3     	Black=4      OK:         	White=12    	Black=10     Best:        	White=1     	---} 1-0

[Event "Prague Open 2024"]
[Site "Prague"]
[Date "2024.01.11"]
[Round "8.20"]
[White "Shen, Zhiyuan"]
[Black "Krupa, Miroslav"]
[Result "1/2-1/2"]
[ECO "B99"]
[WhiteElo "1937"]
[BlackElo "2119"]
[Annotator "TA"]
[PlyCount "65"]
[EventDate "2024.01.02"]
[EventType "swiss"]
[EventCountry "CZE"]
[SourceTitle "playchess.com"]
[Source "ChessBase"]
[SourceQuality "1"]
[TimeControl "40/5400+30:1800+30"]

{[%evp 24,65,33,30,32,0,0,0,24,22,41,36,25,24,22,35,22,-22,-22,-30,46,0,0,-38,-45,-74,-54,-68,-55,-107,-58,-45,-59,-55,0,0,0,0,0,0,0,0,0,0]} 1. e4 {[%emt 0:00:08]} c5 {[%emt 0:00:11]} 2. Nf3 {[%emt 0:00:16]} d6 {[%emt 0:00:12]} 3. d4 {[%emt 0:00:06]} cxd4 {[%emt 0:00:06]} 4. Nxd4 {[%emt 0:00:05]} Nf6 {[%emt 0:00:08]} 5. Nc3 {[%emt 0:00:05]} a6 {[%emt 0:00:09]} 6. Bg5 {[%emt 0:00:28]} e6 {[%emt 0:00:17]} 7. f4 {[%emt 0:00:19]} Be7 {[%emt 0:00:12]} 8. Qf3 {[%emt 0:00:16]} Qc7 {[%emt 0:00:17]} 9. O-O-O {[%emt 0:00:40]} Nbd7 {[%emt 0:00:09]} 10. g4 {[%emt 0:01:21][%cal Bg2g4,Bg4g5][%mdl 32]} b5 {[%emt 0:00:33][%cal Bb7b5,Bb5b4][%mdl 32]} 11. Bxf6 {[%emt 0:00:16]} Nxf6 {[%emt 0:00:10]} 12. g5 {[%emt 0:00:15]} Nd7 {[%emt 0:00:06]} 13. f5 {[%emt 0:01:51][%cal Bf4f5,Bf5f6,Bf6e7][%mdl 32]} O-O {[%emt 0:00:23]} 14. Kb1 {[%emt 0:10:25]} b4 {[%emt 0:02:36]} 15. Nce2 {[%emt 0:05:03]} e5 {[%emt 0:00:54] [#] Es drohte Nf4} 16. f6 $1 {[%emt 0:04:53]} exd4 {[%emt 0:01:43]} 17. fxe7 {[%emt 0:02:53]} Re8 {[%emt 0:00:16]} 18. Nxd4 {[%emt 0:05:01]} Ne5 {[%emt 0:00:55]} 19. Qg3 {[%emt 0:03:34]} Bg4 {[%emt 0:05:09]} 20. Be2 {[%emt 0:11:42]} Bxe2 {[%emt 0:04:47]} 21. Nxe2 {[%emt 0:00:04]} Qxe7 {[%emt 0:02:12]} (21... Rac8 $11 22. Qb3 Qxe7 (22... Rxe7 23. Nf4 $11)) 22. Rd4 {[%emt 0:09:33]} (22. Nf4 $14) 22... Nc6 {[%emt 0:08:57]} 23. Rxd6 {[%emt 0:09:19][%cal Oe2c1]} (23. Rc4 $5) 23... Qxe4 {[%emt 0:00:08]} 24. Rc1 {[%emt 0:01:31][%cal Og3f4]} Rac8 {[%emt 0:11:16]} (24... Ne5 $5 25. Ng1 Nc4 $15) 25. Rd2 {[%emt 0:05:37]} Ne5 {[%emt 0:20:53] [#] Droht stark ...Nc4.} 26. Qf4 {[%emt 0:10:57]} (26. Nf4 $15) 26... Nc4 {[%emt 0:03:17]} (26... Nf3 $17 27. Rd7 Qxf4 (27... Qxe2 28. Qxf7+ Kh8 29. Qxg7#) 28. Nxf4 Nxg5) 27. Rd7 $1 $15 {[%emt 0:00:43]} Qe6 {[%emt 0:01:25]} (27... Qxe2 28. Qxf7+ Kh8 29. Qxg7#) 28. Rcd1 {[%emt 0:02:25]} Qg6 {[%emt 0:13:07]} ({Schwächer ist} 28... Qxe2 29. Qxf7+ Kh8 30. Qxg7#) (28... a5 $15) 29. Rc7 $1 $11 {[%emt 0:03:56] Die Stellung ist ausgeglichen.} Rxc7 {[%emt 0:09:48]} 30. Qxc7 {[%emt 0:00:09] Rd8 ist eine echte Drohung.} Qe4 {[%emt 0:02:59]} ({Nicht} 30... Rxe2 31. Rd8+) 31. Nc1 {[%emt 0:01:39]} g6 {[%emt 0:05:25]} 32. Rd8 {[%emt 0:03:39] Und Rxe8+ würde nun gewinnen.} Rxd8 {[%emt 0:06:04]} 33. Qxd8+ {[%emt 0:00:05] Gewichteter Fehlerwert: Weiß=0.16 (sehr präzise) /Schwarz=0.13 (sehr präzise) .  Fehler:       	Weiß=2     	Schwarz=3     Ungenau:       	Weiß=4     	---        OK:         	Weiß=6     	Schwarz=9     Bester:       	---       	Schwarz=2     Stark:        	Weiß=2     	---        Brilliant:      	Weiß=1     	---} 1/2-1/2

[Event "Prague Open 2024"]
[Site "Prague"]
[Date "2024.01.12"]
[Round "9.2"]
[White "Sowinski, Pawel"]
[Black "Tobak, Mikhail"]
[Result "1-0"]
[ECO "C00"]
[WhiteElo "2357"]
[BlackElo "2288"]
[Annotator "RC"]
[PlyCount "85"]
[EventDate "2024.01.02"]
[EventType "swiss"]
[EventCountry "CZE"]
[SourceTitle "playchess.com"]
[Source "ChessBase"]
[SourceQuality "1"]
[TimeControl "40/5400+30:1800+30"]

1. e4 e6 2. d3 d5 3. Qe2 dxe4 4. dxe4 e5 5. Nf3 Nc6 6. g3 Bd6 7. Bg2 a5 8. O-O b6 9. Nc3 Ba6 10. Nb5 Bc5 11. Rd1 Qe7 12. Bh3 Nf6 13. Bd7+ Qxd7 14. Rxd7 Kxd7 15. Be3 Bxe3 16. fxe3 Nxe4 17. Qc4 Bxb5 18. Qxe4 f6 19. Qd5+ Kc8 20. Qxb5 Kb7 21. Rd1 Rad8 22. Rxd8 Rxd8 23. Qe2 g5 24. a3 h6 25. g4 Ne7 26. Nd2 Kb8 27. Ne4 f5 28. gxf5 Nxf5 29. c4 Nh4 30. c5 Ka7 31. b4 axb4 32. axb4 Kb7 33. Qb5 Rd1+ 34. Kf2 Rc1 35. c6+ Kb8 36. Qa6 Rc2+ 37. Kf1 Rc1+ 38. Ke2 Rc2+ 39. Kf1 Rc1+ 40. Kf2 Rc2+ 41. Kg3 Rxc6 42. Nc5 Nf5+ 43. Kf2 1-0

[Event "Prague Open 2024"]
[Site "Prague"]
[Date "2024.01.12"]
[Round "9.3"]
[White "Keller, Peter"]
[Black "Eliseev, Sergey"]
[Result "1-0"]
[ECO "B90"]
[WhiteElo "2289"]
[BlackElo "2232"]
[Annotator "TA"]
[PlyCount "119"]
[EventDate "2024.01.02"]
[EventType "swiss"]
[EventCountry "CZE"]
[SourceTitle "playchess.com"]
[Source "ChessBase"]
[SourceQuality "1"]
[TimeControl "40/5400+30:1800+30"]

{[%evp 26,119,26,0,60,-14,50,-34,0,0,0,0,0,0,0,-10,0,0,37,53,55,42,39,60,141,30,35,22,39,47,90,68,220,21,10,8,243,230,318,270,333,342,389,379,356,349,350,259,371,378,421,400,751,748,1240,920,812,644,668,587,605,615,583,600,680,689,802,516,770,733,2334,2289,2283,2335,1521,908,1073,1033,904,1196,1930,908,1181,1070,1195,1323,2499,2292,776,1722,29984,29985,29985,29986,29986,29987]} 1. e4 c5 2. Nf3 d6 3. d4 cxd4 4. Nxd4 Nf6 5. Nc3 a6 6. f3 e5 7. Nb3 Be6 8. Be3 h5 {is the new trend.} 9. Nd5 {B90: Sicilian Najdorf: Unusual White 6th moves, 6 Be3 Ng4 and 6 Be3 e5.} Bxd5 10. exd5 g6 11. Qd2 Nbd7 12. O-O-O Qc7 13. Kb1 Bg7 14. c4 a5 (14... O-O $11) 15. Nc1 $146 (15. Na1 $14) ({Predecessor:} 15. g3 O-O 16. Rc1 a4 17. Na1 e4 18. f4 Ng4 19. Bd4 e3 20. Bxe3 Nxe3 21. Qxe3 {0-1 Lowes,D (2614)-Vaibhav,S (2591) Titled Tuesday intern op 4th Febr blitz 2020 (7)}) 15... e4 (15... O-O $11) 16. fxe4 ({Better is} 16. Nb3 $14) 16... Nxe4 17. Qc2 Nec5 18. h3 O-O 19. g4 h4 20. Bf2 Nb6 21. Nb3 Nca4 22. Nd4 (22. Bxh4 $2 Nxb2 23. Rc1 a4 $19) 22... Rfc8 23. Be2 (23. Bxh4 Nxc4 24. Bxc4 (24. Qxa4 $2 Nd2+ 25. Ka1 Qc1+ 26. Rxc1 Rxc1#) 24... Qxc4 $17) 23... Qe7 24. Rhe1 Nc5 ({Black should play} 24... Qf6 $14 25. Rf1 Ra6) 25. Nf3 (25. Nb5 $16) 25... Nba4 $11 26. Bxh4 (26. Nxh4 $2 {is the wrong capture.} Nxb2 (26... Bxb2 27. Bxc5 Qxh4 28. Qxa4 $15) 27. Bf1 Qd8 $19) (26. Bd4 {simplifies} Qe4 27. Nxh4 Bxd4 28. Qxe4 Nxe4 29. Rxd4 Re8 30. Ng2) 26... Qe4 27. Nd4 $1 Qf4 {[#]} 28. Rf1 $1 Qh6 $2 (28... Qe5 $14) 29. Bg3 $2 (29. Bf6 $18) 29... Qh8 $1 $11 30. Bf2 Re8 $2 {[#]} (30... Ra6 $1 $11 {and Black has nothing to worry.}) 31. Bf3 $1 $18 Ra6 32. b3 Nb6 33. Nb5 Rd8 34. h4 (34. Nxd6 Rxd6 35. Bxc5 Na4 $18) 34... Nbd7 35. a4 Rb6 36. Ka2 Rc8 (36... Na6 $142 37. Ka3 (37. Bxb6 Nb4+ 38. Kb1 Nxc2 $17) 37... Ndc5) 37. g5 $18 Rxb5 38. axb5 ({Don't play} 38. cxb5 Ne5 39. Be2 Ned7) 38... Nb6 (38... Ne5 $142 39. Be2 Ncd7) 39. Bg4 $18 Rc7 40. Rfe1 Be5 41. Bg3 Ncd7 42. Bxd7 Nxd7 43. Bxe5 Nxe5 44. Re4 b6 45. Qf2 Qh5 46. Qe2 Qh8 47. Qe3 Rc5 48. Rxe5 Qxe5 49. Qxe5 dxe5 50. Re1 Kg7 51. Rxe5 Rc8 52. d6 Rd8 53. Rd5 f5 54. gxf6+ Kxf6 55. b4 axb4 56. Kb3 Ke6 57. Kxb4 Rxd6 58. Rxd6+ Kxd6 59. c5+ bxc5+ 60. Kc4 1-0

[Event "Prague Open 2024"]
[Site "Prague"]
[Date "2024.01.12"]
[Round "9.4"]
[White "Poetsch, Hagen"]
[Black "Wang, Yukun"]
[Result "1/2-1/2"]
[ECO "B42"]
[WhiteElo "2471"]
[BlackElo "2117"]
[Annotator "TA"]
[PlyCount "64"]
[EventDate "2024.01.02"]
[EventType "swiss"]
[EventCountry "CZE"]
[SourceTitle "playchess.com"]
[Source "ChessBase"]
[SourceQuality "1"]
[TimeControl "40/5400+30:1800+30"]

{[%evp 19,64,50,47,42,52,76,72,33,44,33,44,40,60,13,18,0,27,22,32,37,35,4,6,0,0,-35,-25,-53,-42,-31,-39,-41,-33,-125,-102,-102,-102,-102,-101,-101,-102,-94,0,-7,0,-8,0]} 1. e4 {[%emt 0:00:03]} c5 {[%emt 0:00:07]} 2. Nf3 {[%emt 0:00:05]} e6 {[%emt 0:00:06]} 3. d4 {[%emt 0:00:04]} cxd4 {[%emt 0:00:16]} 4. Nxd4 {[%emt 0:00:05]} a6 {[%emt 0:00:04]} 5. Bd3 {[%emt 0:00:47]} Qc7 {[%emt 0:01:26]} 6. O-O {[%emt 0:00:20]} Nf6 {[%emt 0:00:22]} 7. Qe2 {[%emt 0:00:37]} d6 {[%emt 0:08:18]} 8. c4 {[%emt 0:00:19]} Be7 {[%emt 0:01:20]} 9. Nc3 {[%emt 0:00:06]} Nc6 {[%emt 0:08:06]} 10. Nxc6 {[%emt 0:00:13]} bxc6 {[%emt 0:00:01]} 11. f4 {[%emt 0:00:20] B42: Sicilian: Kan Variation: 5 Bd3.} Nd7 {[%emt 0:01:34]} 12. Be3 {[%emt 0:08:31]} c5 {[%emt 0:04:02] [#]} 13. Rae1 $146 {[%emt 0:05:37][%cal Oe4e5] White is more active. White is better.} ({Predecessor:} 13. Rad1 Bb7 14. Bc2 Rd8 15. Qg4 O-O 16. Qh3 Rfe8 17. f5 exf5 18. Rxf5 Ne5 19. Rdf1 {1-0 Stellwagen,D (2630)-Nikolov,M (2563) Olympiad-40 Istanbul 2012 (7.4)}) 13... O-O {[%emt 0:01:42]} 14. Rf3 {[%emt 0:03:29]} g6 {[%emt 0:10:05]} 15. Rh3 {[%emt 0:17:24]} Bf6 {[%emt 0:03:50]} 16. Nd1 {[%emt 0:09:22]} (16. Qd2 $14) 16... Bg7 $11 {[%emt 0:01:32]} 17. Bd2 {[%emt 0:02:02]} Bb7 {[%emt 0:02:05]} 18. Bc3 {[%emt 0:01:30]} Rae8 {[%emt 0:05:36]} 19. Bxg7 {[%emt 0:07:19]} Kxg7 {[%emt 0:00:01]} 20. Qd2 {[%emt 0:01:39]} f5 $1 {[%emt 0:03:29]} 21. Qc3+ {[%emt 0:06:53]} Nf6 $1 {[%emt 0:04:40][%cal Rb7e4]} 22. Nf2 {[%emt 0:10:52]} fxe4 {[%emt 0:04:35]} (22... d5 {is more complex.} 23. cxd5 exd5 24. exf5 d4) 23. Nxe4 {[%emt 0:00:17]} Bxe4 {[%emt 0:00:02]} 24. Rxe4 {[%emt 0:01:11]} e5 {[%emt 0:02:55][%cal Be6e5,Be5f4][%mdl 32]} 25. Ree3 {[%emt 0:08:17]} exf4 {[%emt 0:01:54]} 26. Ref3 {[%emt 0:00:13] [#]} (26. Rxe8 $1 $15 Rxe8 27. Rh4) 26... d5 $1 {[%emt 0:09:22][%mdl 512]} 27. cxd5 {[%emt 0:00:06][%cal Oh3h4] [#]} Re5 $1 {[%emt 0:00:18]} 28. b4 {[%emt 0:08:04]} (28. Rxf4 $2 {is the wrong capture.} Nxd5 29. Rfh4 h5 $19) 28... Nxd5 {[%emt 0:03:27]} 29. Qxc5 {[%emt 0:00:19]} Qxc5+ {[%emt 0:00:09]} 30. bxc5 {[%emt 0:00:05]} Nb4 {[%emt 0:02:05]} (30... Ne3 $17 31. g3 Rxc5 32. gxf4 Rc1+ 33. Kf2 Nd5) 31. a3 $1 {[%emt 0:00:19]} Nxd3 {[%emt 0:01:32]} 32. Rxd3 {[%emt 0:00:06]} Rf7 {[%emt 0:00:41] Prevents Rd7.   Weighted Error Value: White=0.17 (very precise) /Black=0.11 (very precise)} 1/2-1/2

[Event "Prague Open 2024"]
[Site "Prague"]
[Date "2024.01.12"]
[Round "9.5"]
[White "Shagbazyan, Taron"]
[Black "Krstic, Andrija Marko"]
[Result "1/2-1/2"]
[ECO "D45"]
[WhiteElo "2403"]
[BlackElo "2113"]
[Annotator "RC"]
[PlyCount "163"]
[EventDate "2024.01.02"]
[EventType "swiss"]
[EventCountry "CZE"]
[SourceTitle "playchess.com"]
[Source "ChessBase"]
[SourceQuality "1"]
[TimeControl "40/5400+30:1800+30"]

1. d4 {[%emt 0:10:12]} d5 {[%emt 0:00:06]} 2. c4 {[%emt 0:00:05]} c6 {[%emt 0:00:04]} 3. Nf3 {[%emt 0:00:05]} Nf6 {[%emt 0:00:04]} 4. Nc3 {[%emt 0:00:04]} e6 {[%emt 0:00:04]} 5. e3 {[%emt 0:00:15]} Nbd7 {[%emt 0:00:04]} 6. Qc2 {[%emt 0:00:05]} Bd6 {[%emt 0:00:12]} 7. Bd3 {[%emt 0:00:13]} O-O {[%emt 0:00:27]} 8. O-O {[%emt 0:00:05]} dxc4 {[%emt 0:00:07]} 9. Bxc4 {[%emt 0:00:06]} e5 {[%emt 0:00:11]} 10. b3 {[%emt 0:01:11]} exd4 {[%emt 0:04:36]} 11. exd4 {[%emt 0:02:18]} Nb6 {[%emt 0:02:21]} 12. Bg5 {[%emt 0:05:11]} h6 {[%emt 0:02:06]} 13. Bh4 {[%emt 0:07:15]} Be7 {[%emt 0:07:36]} 14. h3 {[%emt 0:08:49]} Nh5 {[%emt 0:04:20]} 15. Bxe7 {[%emt 0:02:51]} Qxe7 {[%emt 0:00:09]} 16. Rfe1 {[%emt 0:00:31]} Qd8 {[%emt 0:03:33]} 17. Qe4 {[%emt 0:20:42]} Nf6 {[%emt 0:02:24]} 18. Qf4 {[%emt 0:04:51]} Nbd5 {[%emt 0:08:23]} 19. Nxd5 {[%emt 0:00:14]} cxd5 {[%emt 0:00:04]} 20. Bd3 {[%emt 0:00:43]} Be6 {[%emt 0:01:47]} 21. Ne5 {[%emt 0:04:45]} Rc8 {[%emt 0:02:48]} 22. Rad1 {[%emt 0:03:29]} Re8 {[%emt 0:08:52]} 23. Bb1 {[%emt 0:02:16]} Nh5 {[%emt 0:06:15]} 24. Qf3 {[%emt 0:01:05]} Nf6 {[%emt 0:03:33]} 25. Qe3 {[%emt 0:05:59]} Qa5 {[%emt 0:01:33]} 26. f3 {[%emt 0:01:01]} Qc3 {[%emt 0:02:36]} 27. Qf2 {[%emt 0:00:17]} a5 {[%emt 0:03:25]} 28. g4 {[%emt 0:01:24]} Nd7 {[%emt 0:09:01]} 29. h4 {[%emt 0:02:37]} Nxe5 {[%emt 0:00:37]} 30. dxe5 {[%emt 0:01:02]} Red8 {[%emt 0:01:22]} 31. Rd4 {[%emt 0:01:43]} a4 {[%emt 0:01:29]} 32. Bd3 {[%emt 0:05:21]} axb3 {[%emt 0:01:09]} 33. axb3 {[%emt 0:00:02]} Ra8 {[%emt 0:00:12]} 34. b4 {[%emt 0:04:15]} Ra2 {[%emt 0:02:37]} 35. Re2 {[%emt 0:04:10]} Rxe2 {[%emt 0:00:56]} 36. Bxe2 {[%emt 0:00:04]} Ra8 {[%emt 0:00:12]} 37. Rd3 {[%emt 0:01:44]} Qxe5 {[%emt 0:01:06]} 38. Bf1 {[%emt 0:00:14]} Ra1 {[%emt 0:01:25]} 39. Rd2 {[%emt 0:00:16]} Rb1 {[%emt 0:02:44]} 40. b5 {[%emt 0:01:06]} Bd7 {[%emt 0:02:41]} 41. Kg2 {[%emt 0:31:29]} Bxb5 {[%emt 0:37:32]} 42. Bxb5 {[%emt 0:00:09]} Rxb5 {[%emt 0:00:03]} 43. Re2 {[%emt 0:00:12]} Qc3 {[%emt 0:02:20]} 44. Rc2 {[%emt 0:00:00]} Qb3 {[%emt 0:00:00]} 45. Qe2 {[%emt 0:00:00]} Kh7 {[%emt 0:00:00]} 46. h5 {[%emt 0:00:00]} Rb4 {[%emt 0:00:00]} 47. Rd2 {[%emt 0:00:00]} Qc4 {[%emt 0:00:00]} 48. Qe5 {[%emt 0:00:00]} Qc6 {[%emt 0:00:00]} 49. Qf5+ {[%emt 0:00:00]} Kg8 {[%emt 0:00:00]} 50. Rxd5 {[%emt 0:00:00]} Rb2+ {[%emt 0:00:00]} 51. Kh3 {[%emt 0:00:00]} Qc7 {[%emt 0:01:03]} 52. Re5 {[%emt 0:00:00]} Kf8 {[%emt 0:02:53]} 53. Qe4 {[%emt 0:00:00]} Qc6 {[%emt 0:02:10]} 54. Qd3 {[%emt 0:00:00]} Kg8 {[%emt 0:01:07]} 55. Rd5 {[%emt 0:00:00]} Re2 {[%emt 0:00:27]} 56. Rd6 {[%emt 0:00:00]} Re3 {[%emt 0:00:39]} 57. Rxc6 {[%emt 0:00:53]} Rxd3 {[%emt 0:00:07]} 58. Rc8+ {[%emt 0:01:33]} Kh7 {[%emt 0:00:05]} 59. Rc7 {[%emt 0:01:10]} Rxf3+ {[%emt 0:00:18]} 60. Kg2 {[%emt 0:00:06]} Rb3 {[%emt 0:00:39]} 61. Rxf7 {[%emt 0:00:06]} b5 {[%emt 0:00:23]} 62. Rb7 {[%emt 0:01:08]} Kg8 {[%emt 0:00:05]} 63. Kf2 {[%emt 0:01:48]} b4 {[%emt 0:00:11]} 64. Rb5 {[%emt 0:01:42]} Rb2+ {[%emt 0:00:15]} 65. Kf3 {[%emt 0:00:06]} b3 {[%emt 0:00:18]} 66. g5 {[%emt 0:01:32]} hxg5 {[%emt 0:00:04]} 67. Rxg5 {[%emt 0:01:14]} Rh2 {[%emt 0:02:25]} 68. Kg3 {[%emt 0:00:14]} b2 {[%emt 0:00:12]} 69. Rb5 {[%emt 0:00:02]} Rc2 {[%emt 0:00:21]} 70. Rb7 {[%emt 0:00:31]} Kf8 {[%emt 0:00:07]} 71. Kf4 {[%emt 0:01:09]} Ke8 {[%emt 0:00:08]} 72. Ke4 {[%emt 0:01:36]} Kd8 {[%emt 0:00:17]} 73. Kd3 {[%emt 0:00:03]} Rh2 {[%emt 0:00:27]} 74. Kc3 {[%emt 0:00:06]} Kc8 {[%emt 0:00:17]} 75. Rxb2 {[%emt 0:00:23]} Rxb2 {[%emt 0:00:56]} 76. Kxb2 {[%emt 0:00:02]} Kd7 {[%emt 0:00:04]} 77. h6 {[%emt 0:00:44]} gxh6 {[%emt 0:00:05]} 78. Kc2 {[%emt 0:00:08]} Ke6 {[%emt 0:02:48]} 79. Kd3 {[%emt 0:00:18]} Kf5 {[%emt 0:00:05]} 80. Ke3 {[%emt 0:00:09]} Kg4 {[%emt 0:00:02]} 81. Kf2 {[%emt 0:00:04]} Kh3 {[%emt 0:00:04]} 82. Kg1 1/2-1/2